[Event "57th Biel Festival ATO 2024"]
[Site "Biel"]
[Date "2024.07.20"]
[Round "5.8"]
[White "Kulikov, Mikhail L"]
[Black "Bangerter, Ena"]
[Result "1-0"]
[ECO "E09"]
[WhiteElo "1954"]
[BlackElo "1771"]
[Annotator "ChessBase"]
[PlyCount "181"]
[EventDate "2024.07.03"]
[EventType "swiss"]
[EventCountry "SUI"]
[SourceTitle "playchess.com"]
[Source "ChessBase"]
[SourceQuality "1"]
[TimeControl "40/5400+30:1800+30"]

1. Nf3 {[%emt 0:04:05]} Nf6 {[%emt 0:00:00]} 2. d4 {[%emt 0:00:30]} d5 {[%emt 0:00:15]} 3. c4 {[%emt 0:00:31]} e6 {[%emt 0:00:05]} 4. g3 {[%emt 0:00:22]} Be7 {[%emt 0:00:08]} 5. Bg2 {[%emt 0:00:08]} O-O {[%emt 0:00:14]} 6. O-O {[%emt 0:00:08]} Nbd7 {[%emt 0:00:50]} 7. Qc2 {[%emt 0:02:41]} c6 {[%emt 0:00:11]} 8. Nbd2 {[%emt 0:01:55]} b6 {[%emt 0:01:02]} 9. b3 {[%emt 0:03:02]} Bb7 {[%emt 0:01:37]} 10. Bb2 {[%emt 0:00:19]} c5 {[%emt 0:02:01]} 11. e3 {[%emt 0:00:43]} Rc8 {[%emt 0:04:49]} 12. Ne5 {[%emt 0:09:18]} Qc7 {[%emt 0:02:56]} 13. Nxd7 {[%emt 0:02:01]} Qxd7 {[%emt 0:03:44]} 14. dxc5 {[%emt 0:01:32]} Rxc5 {[%emt 0:03:11]} 15. Qd3 {[%emt 0:03:05]} Ba6 {[%emt 0:07:24]} 16. Rfd1 {[%emt 0:09:41]} Rd8 {[%emt 0:03:20]} 17. Qe2 {[%emt 0:16:47]} Qc8 {[%emt 0:07:12]} 18. Bd4 {[%emt 0:04:15]} Rc7 {[%emt 0:06:02]} 19. Be5 {[%emt 0:01:19]} Rc5 {[%emt 0:05:43]} 20. Bd4 {[%emt 0:00:58]} Rc7 {[%emt 0:02:10]} 21. Rac1 {[%emt 0:05:34]} dxc4 {[%emt 0:10:34]} 22. bxc4 {[%emt 0:01:08]} b5 {[%emt 0:13:22]} 23. c5 {[%emt 0:21:31]} Bxc5 {[%emt 0:02:41]} 24. Nb3 {[%emt 0:04:22]} Bxd4 {[%emt 0:02:59]} 25. Rxc7 {[%emt 0:00:17]} Qxc7 {[%emt 0:00:06]} 26. Nxd4 {[%emt 0:00:08]} Qd6 {[%emt 0:08:31]} 27. Rb1 {[%emt 0:00:44]} b4 {[%emt 0:01:20]} 28. Qb2 {[%emt 0:00:31]} Nd5 {[%emt 0:01:09]} 29. Bxd5 {[%emt 0:03:00]} Qxd5 {[%emt 0:00:18]} 30. Qxb4 {[%emt 0:00:09]} h6 {[%emt 0:04:47]} 31. Qb3 {[%emt 0:02:56]} Bc4 {[%emt 0:01:52]} 32. Qa4 {[%emt 0:01:51]} Bxa2 {[%emt 0:01:12]} 33. Ra1 {[%emt 0:00:22]} Bc4 {[%emt 0:00:15]} 34. Nc6 {[%emt 0:00:35]} Bb5 {[%emt 0:02:14]} 35. Ne7+ {[%emt 0:00:21]} Kf8 {[%emt 0:00:57]} 36. Nxd5 {[%emt 0:00:56]} Bxa4 {[%emt 0:00:05]} 37. Nc3 {[%emt 0:00:40]} Bc6 {[%emt 0:00:55]} 38. Rxa7 {[%emt 0:00:08]} Rd3 {[%emt 0:00:47]} 39. Ra3 {[%emt 0:00:16]} Ke7 {[%emt 0:01:16]} 40. Kf1 {[%emt 0:00:35]} Rd7 {[%emt 0:01:26]} 41. Ke2 {[%emt 0:30:38]} Rb7 {[%emt 0:04:42]} 42. e4 {[%emt 0:00:00]} Rb2+ {[%emt 0:02:10]} 43. Ke3 {[%emt 0:00:00]} Kf6 {[%emt 0:01:28]} 44. Ra6 {[%emt 0:00:00]} Bb7 {[%emt 0:01:14]} 45. Ra5 {[%emt 0:00:00]} Bc6 {[%emt 0:05:06]} 46. h3 {[%emt 0:00:00]} g6 {[%emt 0:06:23]} 47. Rc5 {[%emt 0:00:00]} Bb7 {[%emt 0:01:23]} 48. h4 {[%emt 0:00:00]} h5 {[%emt 0:02:22]} 49. f3 {[%emt 0:00:00]} Rb3 {[%emt 0:03:17]} 50. Rc7 {[%emt 0:00:00]} Ba6 {[%emt 0:01:50]} 51. g4 {[%emt 0:00:00]} Kg7 {[%emt 0:02:37]} 52. Kf4 {[%emt 0:00:00]} Kf6 {[%emt 0:01:21]} 53. e5+ {[%emt 0:00:00]} Kg7 {[%emt 0:00:07]} 54. gxh5 {[%emt 0:00:13]} gxh5 {[%emt 0:00:09]} 55. Ne4 {[%emt 0:00:57]} Kg6 {[%emt 0:03:11]} 56. Ng5 {[%emt 0:02:43]} Rb7 {[%emt 0:00:30]} 57. Rc6 {[%emt 0:02:27]} Rb4+ {[%emt 0:00:38]} 58. Kg3 {[%emt 0:00:16]} Bc4 {[%emt 0:00:45]} 59. Rc8 {[%emt 0:01:23]} Ba6 {[%emt 0:00:30]} 60. Rg8+ {[%emt 0:00:42]} Kh6 {[%emt 0:00:17]} 61. Nxf7+ {[%emt 0:00:45]} Kh7 {[%emt 0:00:04]} 62. Rg5 {[%emt 0:00:34]} Bc4 {[%emt 0:01:02]} 63. Nd6 {[%emt 0:00:15]} Kh6 {[%emt 0:00:10]} 64. Nxc4 {[%emt 0:01:17]} Rxc4 {[%emt 0:00:06]} 65. Rg8 {[%emt 0:00:25]} Rc5 {[%emt 0:00:14]} 66. f4 {[%emt 0:00:12]} Rc3+ {[%emt 0:00:07]} 67. Kf2 {[%emt 0:00:21]} Rh3 {[%emt 0:00:28]} 68. Re8 {[%emt 0:00:09]} Rxh4 {[%emt 0:00:18]} 69. Rxe6+ {[%emt 0:00:06]} Kg7 {[%emt 0:00:05]} 70. Kg3 {[%emt 0:00:14]} Rg4+ {[%emt 0:00:05]} 71. Kf3 {[%emt 0:00:09]} Rg1 {[%emt 0:01:19]} 72. Rd6 {[%emt 0:01:17]} h4 {[%emt 0:00:25]} 73. Rd2 {[%emt 0:00:16]} Rf1+ {[%emt 0:01:43]} 74. Ke4 {[%emt 0:01:21]} h3 {[%emt 0:00:43]} 75. Rh2 {[%emt 0:00:21]} Kg6 {[%emt 0:00:08]} 76. Rxh3 {[%emt 0:00:37]} Re1+ {[%emt 0:00:18]} 77. Re3 {[%emt 0:00:23]} Ra1 {[%emt 0:00:15]} 78. Rg3+ {[%emt 0:00:08]} Kf7 {[%emt 0:00:06]} 79. Kf5 {[%emt 0:00:06]} Ra5 {[%emt 0:00:14]} 80. Rc3 {[%emt 0:00:39]} Ke7 {[%emt 0:00:45]} 81. Rc7+ {[%emt 0:00:29]} Kd8 {[%emt 0:00:23]} 82. Rh7 {[%emt 0:00:35]} Ke8 {[%emt 0:00:46]} 83. Kf6 {[%emt 0:00:20]} Ra6+ {[%emt 0:00:06]} 84. e6 {[%emt 0:00:16]} Kd8 {[%emt 0:00:36]} 85. f5 {[%emt 0:00:33]} Rb6 {[%emt 0:00:11]} 86. Ra7 {[%emt 0:00:24]} Rc6 {[%emt 0:02:13]} 87. Kf7 {[%emt 0:00:28]} Kc8 {[%emt 0:00:45]} 88. e7 {[%emt 0:00:38]} Kb8 {[%emt 0:00:23]} 89. e8=Q+ {[%emt 0:01:11]} Rc8 {[%emt 0:00:06]} 90. Qxc8+ {[%emt 0:00:30]} Kxc8 {[%emt 0:00:06]} 91. Ke7 {[%emt 0:00:22]} 1-0

[Event "57th Biel Festival ATO 2024"]
[Site "Biel"]
[Date "2024.07.20"]
[Round "5.9"]
[White "Schneuwly, Achim"]
[Black "Boillat, Maxime"]
[Result "0-1"]
[ECO "A09"]
[WhiteElo "1933"]
[BlackElo "1768"]
[Annotator "NA"]
[PlyCount "42"]
[EventDate "2024.07.03"]
[EventType "swiss"]
[EventCountry "SUI"]
[SourceTitle "playchess.com"]
[Source "ChessBase"]
[SourceQuality "1"]
[TimeControl "40/5400+30:1800+30"]

1. Nf3 {[%emt 0:09:28]} d5 {[%emt 0:06:52]} 2. c4 {[%emt 0:00:31]} d4 {[%emt 0:02:05]} 3. e3 {[%emt 0:03:14]} Nc6 {[%emt 0:02:52]} 4. g3 {[%emt 0:03:47]} e5 {[%emt 0:03:42]} 5. Bg2 {[%emt 0:31:13]} Nf6 {[%emt 0:01:11]} 6. O-O {[%emt 0:00:30]} Bc5 {[%emt 0:00:30]} 7. exd4 {[%emt 0:00:30]} Nxd4 {[%emt 0:00:30]} 8. Nxe5 {[%emt 0:00:30]} c6 {[%emt 0:00:30]} 9. d3 {[%emt 0:00:30]} O-O {[%emt 0:00:30]} 10. Be3 {[%emt 0:00:30]} Re8 {[%emt 0:11:31]} 11. f4 {[%emt 0:00:56]} Rxe5 {[%emt 0:06:54]} 12. fxe5 {[%emt 0:00:30]} Ng4 {[%emt 0:00:38]} 13. Bf2 {[%emt 0:05:03]} Nxf2 {[%emt 0:01:07]} 14. Rxf2 {[%emt 0:00:04]} Nf5 {[%emt 0:02:16]} 15. Qe2 {[%emt 0:15:13]} Nh6 {[%emt 0:10:05]} 16. Nc3 {[%emt 0:06:24]} Bxf2+ {[%emt 0:12:16]} 17. Qxf2 {[%emt 0:06:06]} Be6 {[%emt 0:09:05]} 18. Qe2 {[%emt 0:06:20]} Qd4+ {[%emt 0:00:57]} 19. Kh1 {[%emt 0:00:27]} Ng4 {[%emt 0:00:52]} 20. Be4 {[%emt 0:04:01]} Nf2+ {[%emt 0:02:08]} 21. Kg2 {[%emt 0:01:32]} Bh3+ {[%emt 0:00:16]} 0-1

[Event "57th Biel Festival ATO 2024"]
[Site "Biel"]
[Date "2024.07.20"]
[Round "5.10"]
[White "Moon, Sunwoong"]
[Black "Jud, Marc"]
[Result "0-1"]
[ECO "D02"]
[WhiteElo "1661"]
[BlackElo "1925"]
[Annotator "NA"]
[PlyCount "98"]
[EventDate "2024.07.03"]
[EventType "swiss"]
[EventCountry "SUI"]
[SourceTitle "playchess.com"]
[Source "ChessBase"]
[SourceQuality "1"]
[TimeControl "40/5400+30:1800+30"]

1. d4 {[%emt 0:00:04]} d5 {[%emt 0:00:09]} 2. Bf4 {[%emt 0:00:06]} e6 {[%emt 0:00:28]} 3. e3 {[%emt 0:00:18]} Nf6 {[%emt 0:00:46]} 4. Nf3 {[%emt 0:00:41]} c5 {[%emt 0:00:19]} 5. c3 {[%emt 0:00:23]} Be7 {[%emt 0:01:47]} 6. h3 {[%emt 0:00:30]} O-O {[%emt 0:01:04]} 7. Bd3 {[%emt 0:01:12]} c4 {[%emt 0:01:55]} 8. Be2 {[%emt 0:00:49]} b5 {[%emt 0:00:28]} 9. Nbd2 {[%emt 0:00:52]} Bb7 {[%emt 0:01:01]} 10. Ne5 {[%emt 0:01:44]} Nbd7 {[%emt 0:00:26]} 11. Ndf3 {[%emt 0:00:52]} Nxe5 {[%emt 0:00:38]} 12. Nxe5 {[%emt 0:00:15]} Nd7 {[%emt 0:00:42]} 13. O-O {[%emt 0:00:52]} Nxe5 {[%emt 0:00:28]} 14. Bxe5 {[%emt 0:00:08]} Bd6 {[%emt 0:01:08]} 15. f4 {[%emt 0:05:27]} f5 {[%emt 0:04:38]} 16. Qe1 {[%emt 0:02:18]} Bxe5 {[%emt 0:00:19]} 17. fxe5 {[%emt 0:00:54]} a5 {[%emt 0:00:33]} 18. a4 {[%emt 0:02:23]} bxa4 {[%emt 0:01:22]} 19. Bd1 {[%emt 0:02:00]} Bc6 {[%emt 0:01:31]} 20. Bxa4 {[%emt 0:00:38]} Bxa4 {[%emt 0:00:23]} 21. Rxa4 {[%emt 0:00:07]} Rb8 {[%emt 0:00:31]} 22. Qa1 {[%emt 0:02:12]} Rb5 {[%emt 0:02:31]} 23. Qa3 {[%emt 0:01:04]} Qb6 {[%emt 0:04:48]} 24. Ra1 {[%emt 0:00:53]} Ra8 {[%emt 0:00:30]} 25. Qe7 {[%emt 0:01:05]} h6 {[%emt 0:02:18]} 26. Rb4 {[%emt 0:00:28]} Rxb4 {[%emt 0:02:13]} 27. cxb4 {[%emt 0:01:13]} a4 {[%emt 0:00:39]} 28. Qc5 {[%emt 0:00:35]} Qb7 {[%emt 0:00:59]} 29. b5 {[%emt 0:01:45]} Ra5 {[%emt 0:06:35]} 30. Qd6 {[%emt 0:06:00]} Kf7 {[%emt 0:06:19]} 31. g4 {[%emt 0:02:06]} a3 {[%emt 0:08:53]} 32. bxa3 {[%emt 0:17:20]} Rxb5 {[%emt 0:01:20]} 33. gxf5 {[%emt 0:00:26]} Rb1+ {[%emt 0:00:58]} 34. Rxb1 {[%emt 0:00:11]} Qxb1+ {[%emt 0:00:04]} 35. Kf2 {[%emt 0:00:19]} Qxf5+ {[%emt 0:00:12]} 36. Ke2 {[%emt 0:00:12]} Qd3+ {[%emt 0:01:15]} 37. Kf2 {[%emt 0:00:32]} Qf5+ {[%emt 0:07:35]} 38. Kg2 {[%emt 0:00:43]} Kg6 {[%emt 0:00:19]} 39. Qc6 {[%emt 0:03:54]} Qc2+ {[%emt 0:01:46]} 40. Kf3 {[%emt 0:01:04]} Kf5 {[%emt 0:01:07]} 41. Qd7 {[%emt 0:31:07]} Qd1+ {[%emt 0:30:57]} 42. Kg2 {[%emt 0:01:51]} Qe2+ {[%emt 0:01:36]} 43. Kh1 {[%emt 0:00:13]} Qf3+ {[%emt 0:00:42]} 44. Kh2 {[%emt 0:00:31]} c3 {[%emt 0:03:36]} 45. Qf7+ {[%emt 0:00:46]} Ke4 {[%emt 0:00:20]} 46. Qxe6 {[%emt 0:00:54]} Kxe3 {[%emt 0:02:32]} 47. Qc6 {[%emt 0:04:58]} Kd2 {[%emt 0:01:05]} 48. e6 {[%emt 0:00:33]} c2 {[%emt 0:00:31]} 49. e7 {[%emt 0:00:36]} Qe2+ {[%emt 0:00:39]} 0-1

[Event "57th Biel Festival ATO 2024"]
[Site "Biel"]
[Date "2024.07.20"]
[Round "5.11"]
[White "Haas, Anthony"]
[Black "Leuenberger, Urs"]
[Result "1/2-1/2"]
[ECO "D78"]
[WhiteElo "1824"]
[BlackElo "1903"]
[Annotator "NA"]
[PlyCount "109"]
[EventDate "2024.07.03"]
[EventType "swiss"]
[EventCountry "SUI"]
[SourceTitle "playchess.com"]
[Source "ChessBase"]
[SourceQuality "1"]
[TimeControl "40/5400+30:1800+30"]

1. d4 {[%emt 0:00:02]} Nf6 {[%emt 0:00:22]} 2. c4 {[%emt 0:00:03]} g6 {[%emt 0:00:20]} 3. g3 {[%emt 0:00:49]} c6 {[%emt 0:00:21]} 4. Bg2 {[%emt 0:00:17]} d5 {[%emt 0:00:28]} 5. Nf3 {[%emt 0:00:12]} Bg7 {[%emt 0:00:26]} 6. O-O {[%emt 0:00:07]} O-O {[%emt 0:00:08]} 7. Nbd2 {[%emt 0:00:21]} Ne4 {[%emt 0:02:53]} 8. Qb3 {[%emt 0:10:29]} Nxd2 {[%emt 0:08:24]} 9. Bxd2 {[%emt 0:00:21]} Qb6 {[%emt 0:02:29]} 10. Qxb6 {[%emt 0:08:58]} axb6 {[%emt 0:00:12]} 11. cxd5 {[%emt 0:00:35]} cxd5 {[%emt 0:00:09]} 12. Rfc1 {[%emt 0:05:34]} Nc6 {[%emt 0:04:19]} 13. e3 {[%emt 0:00:48]} e6 {[%emt 0:02:25]} 14. Bf1 {[%emt 0:06:09]} Bd7 {[%emt 0:01:57]} 15. a3 {[%emt 0:14:38]} Rfc8 {[%emt 0:04:02]} 16. b4 {[%emt 0:10:53]} Bf8 {[%emt 0:02:58]} 17. b5 {[%emt 0:09:07]} Na5 {[%emt 0:00:46]} 18. Bxa5 {[%emt 0:01:07]} Rxa5 {[%emt 0:03:46]} 19. Rxc8 {[%emt 0:03:19]} Bxc8 {[%emt 0:00:11]} 20. a4 {[%emt 0:03:04]} Bd6 {[%emt 0:00:30]} 21. Bd3 {[%emt 0:02:53]} f6 {[%emt 0:00:32]} 22. Kf1 {[%emt 0:03:15]} Bd7 {[%emt 0:00:20]} 23. Nd2 {[%emt 0:04:05]} Ra8 {[%emt 0:00:35]} 24. Nb3 {[%emt 0:00:36]} Rc8 {[%emt 0:09:03]} 25. Rc1 {[%emt 0:00:39]} Ra8 {[%emt 0:00:32]} 26. Ra1 {[%emt 0:00:09]} e5 {[%emt 0:01:05]} 27. dxe5 {[%emt 0:00:13]} fxe5 {[%emt 0:00:13]} 28. e4 {[%emt 0:01:28]} d4 {[%emt 0:00:57]} 29. Bc4+ {[%emt 0:00:15]} Kf8 {[%emt 0:02:53]} 30. Ke2 {[%emt 0:01:15]} Ke7 {[%emt 0:00:22]} 31. a5 {[%emt 0:08:02]} Bb4 {[%emt 0:07:44]} 32. axb6 {[%emt 0:01:25]} Rxa1 {[%emt 0:00:42]} 33. Nxa1 {[%emt 0:00:01]} Bc5 {[%emt 0:00:24]} 34. Nb3 {[%emt 0:01:50]} Bxb6 {[%emt 0:00:20]} 35. f4 {[%emt 0:00:18]} Kd6 {[%emt 0:03:06]} 36. Kd3 {[%emt 0:00:41]} h6 {[%emt 0:03:26]} 37. Nd2 {[%emt 0:01:03]} Bg4 {[%emt 0:05:31]} 38. Bd5 {[%emt 0:00:21]} exf4 {[%emt 0:00:54]} 39. gxf4 {[%emt 0:00:22]} Bd7 {[%emt 0:00:38]} 40. Nc4+ {[%emt 0:01:29]} Kc5 {[%emt 0:01:04]} 41. Nxb6 {[%emt 0:32:01]} Kxb6 {[%emt 0:30:11]} 42. Kxd4 {[%emt 0:00:43]} Bxb5 {[%emt 0:01:38]} 43. h4 {[%emt 0:00:00]} Be8 {[%emt 0:00:00]} 44. f5 {[%emt 0:00:00]} gxf5 {[%emt 0:00:00]} 45. exf5 {[%emt 0:00:00]} Kc7 {[%emt 0:00:00]} 46. Ke5 {[%emt 0:00:00]} Kd7 {[%emt 0:00:00]} 47. Bxb7 {[%emt 0:00:00]} Ke7 {[%emt 0:00:00]} 48. Bd5 {[%emt 0:00:00]} Bh5 {[%emt 0:00:00]} 49. Bg8 {[%emt 0:00:00]} Kf8 {[%emt 0:00:00]} 50. Bc4 {[%emt 0:00:00]} Bg4 {[%emt 0:00:00]} 51. Kf6 {[%emt 0:00:00]} Bxf5 {[%emt 0:00:00]} 52. Kxf5 {[%emt 0:00:00]} Kg7 {[%emt 0:00:00]} 53. h5 {[%emt 0:00:00]} Kh7 {[%emt 0:00:00]} 54. Kf6 {[%emt 0:00:00]} Kh8 {[%emt 0:00:00]} 55. Kg6 {[%emt 0:00:00]} 1/2-1/2

[Event "57th Biel Festival ATO 2024"]
[Site "Biel"]
[Date "2024.07.20"]
[Round "5.13"]
[White "Schmid, Nicola"]
[Black "Akhmediyar, Yernur"]
[Result "0-1"]
[ECO "E12"]
[WhiteElo "1888"]
[BlackElo "1751"]
[Annotator "NA"]
[PlyCount "78"]
[EventDate "2024.07.03"]
[EventType "swiss"]
[EventCountry "SUI"]
[SourceTitle "playchess.com"]
[Source "ChessBase"]
[SourceQuality "1"]
[TimeControl "40/5400+30:1800+30"]

1. Nf3 {[%emt 0:00:06]} Nf6 {[%emt 0:00:39]} 2. c4 {[%emt 0:00:31]} e6 {[%emt 0:01:26]} 3. d4 {[%emt 0:05:31]} b6 {[%emt 0:06:08]} 4. a3 {[%emt 0:00:38]} Be7 {[%emt 0:14:16]} 5. Nc3 {[%emt 0:01:35]} Bb7 {[%emt 0:05:38]} 6. d5 {[%emt 0:02:53]} d6 {[%emt 0:10:37]} 7. e4 {[%emt 0:05:04]} Nbd7 {[%emt 0:04:09]} 8. dxe6 {[%emt 0:10:57]} fxe6 {[%emt 0:00:34]} 9. Ng5 {[%emt 0:00:50]} Nf8 {[%emt 0:03:11]} 10. Bd3 {[%emt 0:01:32]} N6d7 {[%emt 0:16:11]} 11. Nh3 {[%emt 0:08:24]} Ng6 {[%emt 0:02:16]} 12. f4 {[%emt 0:02:10]} Bf6 {[%emt 0:05:03]} 13. O-O {[%emt 0:06:24]} Nc5 {[%emt 0:05:40]} 14. Bc2 {[%emt 0:09:27]} Bxc3 {[%emt 0:08:36]} 15. bxc3 {[%emt 0:01:09]} Qd7 {[%emt 0:02:33]} 16. f5 {[%emt 0:00:16]} exf5 {[%emt 0:01:54]} 17. exf5 {[%emt 0:02:41]} Ne5 {[%emt 0:00:32]} 18. f6 {[%emt 0:03:42]} gxf6 {[%emt 0:01:07]} 19. Rxf6 {[%emt 0:01:28]} Qg4 {[%emt 0:04:56]} 20. Qxg4 {[%emt 0:15:41]} Nxg4 {[%emt 0:00:01]} 21. Rf4 {[%emt 0:00:43]} Ne5 {[%emt 0:00:27]} 22. Be3 {[%emt 0:07:24]} Rg8 {[%emt 0:02:54]} 23. g3 {[%emt 0:02:13]} Nf3+ {[%emt 0:01:50]} 24. Kf2 {[%emt 0:01:19]} Ne5 {[%emt 0:00:42]} 25. Bxh7 {[%emt 0:06:29]} Ncd3+ {[%emt 0:00:42]} 26. Kf1 {[%emt 0:02:41]} Nxf4 {[%emt 0:00:18]} 27. Bxg8 {[%emt 0:00:11]} Nxh3 {[%emt 0:00:53]} 28. Be6 {[%emt 0:00:07]} Ba6 {[%emt 0:00:42]} 29. Bxh3 {[%emt 0:00:25]} Nxc4 {[%emt 0:00:18]} 30. Kf2 {[%emt 0:00:38]} Ke7 {[%emt 0:00:28]} 31. Bg5+ {[%emt 0:00:19]} Kf7 {[%emt 0:00:06]} 32. Re1 {[%emt 0:00:45]} Ne5 {[%emt 0:00:18]} 33. Re4 {[%emt 0:00:45]} Nd3+ {[%emt 0:00:53]} 34. Ke3 {[%emt 0:01:22]} Ne5 {[%emt 0:00:22]} 35. Rf4+ {[%emt 0:00:41]} Kg6 {[%emt 0:00:41]} 36. Bh4 {[%emt 0:00:12]} Re8 {[%emt 0:00:34]} 37. Rf6+ {[%emt 0:00:38]} Kg7 {[%emt 0:00:18]} 38. Re6 {[%emt 0:01:05]} Nc4+ {[%emt 0:00:57]} 39. Kf4 {[%emt 0:00:22]} Kf7 {[%emt 0:00:00]} 0-1

[Event "57th Biel Festival ATO 2024"]
[Site "Biel"]
[Date "2024.07.20"]
[Round "5.14"]
[White "Nergard, Ole-Kristian"]
[Black "Sushrutha, Reddy"]
[Result "1-0"]
[ECO "A25"]
[WhiteElo "1830"]
[BlackElo "1649"]
[Annotator "NA"]
[PlyCount "167"]
[EventDate "2024.07.03"]
[EventType "swiss"]
[EventCountry "SUI"]
[SourceTitle "playchess.com"]
[Source "ChessBase"]
[SourceQuality "1"]
[TimeControl "40/5400+30:1800+30"]

1. c4 {[%emt 0:05:01]} e5 {[%emt 0:00:11]} 2. g3 {[%emt 0:00:30]} Nc6 {[%emt 0:00:13]} 3. Bg2 {[%emt 0:00:10]} d6 {[%emt 0:00:11]} 4. Nc3 {[%emt 0:00:08]} Be6 {[%emt 0:00:11]} 5. d3 {[%emt 0:02:42]} g6 {[%emt 0:00:13]} 6. h4 {[%emt 0:03:06]} Nf6 {[%emt 0:01:28]} 7. Nd5 {[%emt 0:00:23]} Bg7 {[%emt 0:00:43]} 8. Bg5 {[%emt 0:01:53]} h6 {[%emt 0:00:19]} 9. Bd2 {[%emt 0:07:40]} O-O {[%emt 0:00:38]} 10. Qc1 {[%emt 0:01:03]} Kh7 {[%emt 0:01:03]} 11. Nxf6+ {[%emt 0:02:47]} Bxf6 {[%emt 0:04:00]} 12. Bxh6 {[%emt 0:00:28]} Re8 {[%emt 0:00:50]} 13. Nf3 {[%emt 0:06:36]} Nd4 {[%emt 0:04:27]} 14. Nxd4 {[%emt 0:01:27]} exd4 {[%emt 0:00:08]} 15. Bxb7 {[%emt 0:05:49]} Bg4 {[%emt 0:00:58]} 16. f3 {[%emt 0:06:54]} Qe7 {[%emt 0:02:06]} 17. Rh2 {[%emt 0:05:21]} Rab8 {[%emt 0:04:45]} 18. Bc6 {[%emt 0:01:28]} Bd7 {[%emt 0:00:39]} 19. Bxd7 {[%emt 0:05:01]} Qxd7 {[%emt 0:00:02]} 20. Bg5 {[%emt 0:15:59]} Bxg5 {[%emt 0:01:07]} 21. hxg5+ {[%emt 0:00:03]} Kg7 {[%emt 0:00:21]} 22. Qf4 {[%emt 0:00:43]} Qf5 {[%emt 0:04:21]} 23. Qxd4+ {[%emt 0:00:44]} Qe5 {[%emt 0:00:19]} 24. Qxe5+ {[%emt 0:00:44]} Rxe5 {[%emt 0:00:02]} 25. f4 {[%emt 0:00:19]} Re3 {[%emt 0:00:02]} 26. Kf2 {[%emt 0:00:19]} Rbe8 {[%emt 0:00:18]} 27. Re1 {[%emt 0:02:05]} a5 {[%emt 0:00:17]} 28. b3 {[%emt 0:03:03]} c6 {[%emt 0:00:11]} 29. Rg2 {[%emt 0:00:45]} d5 {[%emt 0:00:37]} 30. cxd5 {[%emt 0:01:08]} cxd5 {[%emt 0:00:02]} 31. g4 {[%emt 0:00:41]} d4 {[%emt 0:00:06]} 32. Rg3 {[%emt 0:00:36]} R3e6 {[%emt 0:00:25]} 33. e4 {[%emt 0:00:24]} Rh8 {[%emt 0:00:39]} 34. Rc1 {[%emt 0:00:38]} a4 {[%emt 0:00:14]} 35. bxa4 {[%emt 0:00:26]} Rb6 {[%emt 0:00:18]} 36. Rc2 {[%emt 0:01:48]} Rb1 {[%emt 0:00:11]} 37. Rg2 {[%emt 0:05:55]} Rh3 {[%emt 0:01:03]} 38. Rd2 {[%emt 0:02:27]} Rb4 {[%emt 0:00:32]} 39. f5 {[%emt 0:00:54]} gxf5 {[%emt 0:00:09]} 40. gxf5 {[%emt 0:00:12]} f6 {[%emt 0:00:36]} 41. g6 {[%emt 0:32:45]} Rxa4 {[%emt 0:30:23]} 42. Kg1 {[%emt 0:03:47]} Ra3 {[%emt 0:00:05]} 43. Rb2 {[%emt 0:01:13]} Raxd3 {[%emt 0:00:31]} 44. Rb7+ {[%emt 0:00:21]} Kg8 {[%emt 0:00:13]} 45. Rc2 {[%emt 0:00:00]} Rhg3+ {[%emt 0:00:00]} 46. Kf1 {[%emt 0:00:00]} Rgf3+ {[%emt 0:00:00]} 47. Ke1 {[%emt 0:00:00]} Rfe3+ {[%emt 0:00:00]} 48. Re2 {[%emt 0:00:00]} Rh3 {[%emt 0:00:00]} 49. Kf1 {[%emt 0:05:57]} Rdf3+ {[%emt 0:00:00]} 50. Rf2 {[%emt 0:00:55]} Re3 {[%emt 0:00:00]} 51. Re2 {[%emt 0:01:50]} Ref3+ {[%emt 0:00:00]} 52. Ke1 {[%emt 0:00:38]} Rd3 {[%emt 0:00:00]} 53. Rb3 {[%emt 0:00:23]} Rh1+ {[%emt 0:00:00]} 54. Kf2 {[%emt 0:00:09]} Rdd1 {[%emt 0:00:00]} 55. Kf3 {[%emt 0:01:05]} Rh3+ {[%emt 0:00:00]} 56. Kg2 {[%emt 0:00:32]} Rxb3 {[%emt 0:00:00]} 57. axb3 {[%emt 0:00:01]} d3 {[%emt 0:00:00]} 58. Re3 {[%emt 0:00:41]} d2 {[%emt 0:00:00]} 59. Rd3 {[%emt 0:00:20]} Rb1 {[%emt 0:00:00]} 60. Rxd2 {[%emt 0:00:04]} Rxb3 {[%emt 0:00:00]} 61. Kf2 {[%emt 0:00:44]} Ra3 {[%emt 0:00:00]} 62. Rd6 {[%emt 0:00:20]} Kg7 {[%emt 0:00:00]} 63. Rd7+ {[%emt 0:00:31]} Kg8 {[%emt 0:00:00]} 64. Rf7 {[%emt 0:00:17]} Ra4 {[%emt 0:00:00]} 65. Kf3 {[%emt 0:00:11]} Ra6 {[%emt 0:00:00]} 66. Kf4 {[%emt 0:00:28]} Rb6 {[%emt 0:00:00]} 67. Re7 {[%emt 0:00:43]} Rb1 {[%emt 0:00:00]} 68. Rf7 {[%emt 0:00:20]} Rb6 {[%emt 0:00:00]} 69. Re7 {[%emt 0:00:55]} Rb1 {[%emt 0:00:00]} 70. Ke3 {[%emt 0:00:33]} Rb4 {[%emt 0:00:00]} 71. e5 {[%emt 0:00:30]} fxe5 {[%emt 0:00:00]} 72. f6 {[%emt 0:00:22]} Rb8 {[%emt 0:00:00]} 73. Ke4 {[%emt 0:00:19]} Rb4+ {[%emt 0:00:00]} 74. Kf5 {[%emt 0:00:15]} Rb8 {[%emt 0:00:00]} 75. Rxe5 {[%emt 0:00:32]} Ra8 {[%emt 0:00:00]} 76. Rd5 {[%emt 0:00:31]} Rb8 {[%emt 0:00:00]} 77. Rd7 {[%emt 0:00:36]} Kf8 {[%emt 0:00:00]} 78. Ke6 {[%emt 0:00:51]} Re8+ {[%emt 0:00:00]} 79. Kf5 {[%emt 0:00:40]} Ra8 {[%emt 0:00:00]} 80. Rf7+ {[%emt 0:00:40]} Kg8 {[%emt 0:00:00]} 81. Rd7 {[%emt 0:00:26]} Kf8 {[%emt 0:00:00]} 82. g7+ {[%emt 0:00:29]} Kg8 {[%emt 0:00:00]} 83. Kg6 {[%emt 0:00:19]} Ra6 {[%emt 0:00:02]} 84. Rd8# {[%emt 0:00:14]} 1-0